[Event "*** Titled Tuesday Blitz"]
[Site "Chess.com"]
[Date "2021.02.02"]
[Round "3"]
[White "tk22h"]
[Black "lelajavakhishvili"]
[Result "1/2-1/2"]
[WhiteElo "2358"]
[BlackElo "2527"]
[TimeControl "180+1"]
[EndTime "10:30:52 PST"]
[Termination "Game drawn by repetition"]

1. c4 {[%clk 0:03:00.9]} 1... g6 {[%clk 0:02:58.2]} 2. Nc3 {[%clk 0:03:00.1]}
2... Bg7 {[%clk 0:02:58.3]} 3. Nf3 {[%clk 0:03:00.7]} 3... c5 {[%clk 0:02:55.7]}
4. g3 {[%clk 0:03:00.4]} 4... Nc6 {[%clk 0:02:55.7]} 5. Bg2 {[%clk 0:03:01]}
5... e5 {[%clk 0:02:55.5]} 6. O-O {[%clk 0:03:01]} 6... Nge7 {[%clk 0:02:55.6]}
7. d3 {[%clk 0:03:01.3]} 7... d6 {[%clk 0:02:54.9]} 8. a3 {[%clk 0:03:01.2]}
8... O-O {[%clk 0:02:54.3]} 9. Rb1 {[%clk 0:03:01.3]} 9... a5 {[%clk 0:02:54.4]}
10. Bd2 {[%clk 0:02:59.9]} 10... h6 {[%clk 0:02:52.8]} 11. Ne1 {[%clk
0:02:59.8]} 11... Be6 {[%clk 0:02:52.4]} 12. Nc2 {[%clk 0:02:59.9]} 12... d5
{[%clk 0:02:50.2]} 13. cxd5 {[%clk 0:03:00.8]} 13... Nxd5 {[%clk 0:02:50.1]} 14.
Ne3 {[%clk 0:03:01.3]} 14... Nxe3 {[%clk 0:02:43.5]} 15. Bxe3 {[%clk 0:03:00.9]}
15... Nd4 {[%clk 0:02:22.9]} 16. Bxb7 {[%clk 0:02:55.3]} 16... Rb8 {[%clk
0:02:22.2]} 17. Bg2 {[%clk 0:02:55]} 17... Bb3 {[%clk 0:02:21.9]} 18. Qd2 {[%clk
0:02:54.5]} 18... Bc2 {[%clk 0:02:13.9]} 19. Bxd4 {[%clk 0:02:47.1]} 19... exd4
{[%clk 0:01:31.9]} 20. Qxc2 {[%clk 0:02:46.5]} 20... dxc3 {[%clk 0:01:32.8]} 21.
bxc3 {[%clk 0:02:46.8]} 21... Qf6 {[%clk 0:01:31.8]} 22. c4 {[%clk 0:02:45.4]}
22... Rb2 {[%clk 0:01:27.9]} 23. Rxb2 {[%clk 0:02:45.1]} 23... Qxb2 {[%clk
0:01:28.1]} 24. Qxb2 {[%clk 0:02:41.4]} 24... Bxb2 {[%clk 0:01:27.1]} 25. a4
{[%clk 0:02:41.3]} 25... Rb8 {[%clk 0:01:24.3]} 26. Rb1 {[%clk 0:02:39.9]} 26...
Rb4 {[%clk 0:01:24]} 27. Bc6 {[%clk 0:02:34.8]} 27... Bd4 {[%clk 0:01:14.3]} 28.
Rd1 {[%clk 0:02:21.8]} 28... Kg7 {[%clk 0:01:08]} 29. Kg2 {[%clk 0:02:18.8]}
29... Rb2 {[%clk 0:01:07.2]} 30. Kf3 {[%clk 0:02:17.8]} 30... f5 {[%clk
0:01:05.5]} 31. h4 {[%clk 0:02:16.7]} 31... Kf6 {[%clk 0:01:05]} 32. e3 {[%clk
0:02:14.9]} 32... Bc3 {[%clk 0:00:59.2]} 33. Bb5 {[%clk 0:02:13.4]} 33... g5
{[%clk 0:00:58.4]} 34. hxg5+ {[%clk 0:02:12.7]} 34... hxg5 {[%clk 0:00:59.3]}
35. d4 {[%clk 0:02:13]} 35... g4+ {[%clk 0:00:57.3]} 36. Kg2 {[%clk 0:02:12.8]}
36... cxd4 {[%clk 0:00:56.3]} 37. exd4 {[%clk 0:02:12.5]} 37... f4 {[%clk
0:00:54.1]} 38. gxf4 {[%clk 0:02:12.4]} 38... Kf5 {[%clk 0:00:54]} 39. d5 {[%clk
0:02:09.8]} 39... Kxf4 {[%clk 0:00:53]} 40. Kf1 {[%clk 0:02:02.9]} 40... Bb4
{[%clk 0:00:27.6]} 41. d6 {[%clk 0:01:40.7]} 41... Bc5 {[%clk 0:00:27.5]} 42. d7
{[%clk 0:01:36.6]} 42... Rxf2+ {[%clk 0:00:27]} 43. Ke1 {[%clk 0:01:36.2]} 43...
g3 {[%clk 0:00:24.5]} 44. d8=Q {[%clk 0:01:19.5]} 44... Bb4+ {[%clk 0:00:24.2]}
45. Rd2 {[%clk 0:01:17.7]} 45... Rxd2 {[%clk 0:00:21.4]} 46. Qxd2+ {[%clk
0:01:10.5]} 46... Bxd2+ {[%clk 0:00:20.4]} 47. Kf1 {[%clk 0:01:06.3]} 47... Bb4
{[%clk 0:00:16.9]} 48. Kg2 {[%clk 0:01:05.8]} 48... Bc5 {[%clk 0:00:16.9]} 49.
Bc6 {[%clk 0:01:05.7]} 49... Ke5 {[%clk 0:00:16.6]} 50. Bb5 {[%clk 0:01:05.8]}
50... Kf4 {[%clk 0:00:16.1]} 51. Bc6 {[%clk 0:01:05.8]} 51... Bb4 {[%clk
0:00:16.3]} 52. Bb5 {[%clk 0:01:05.8]} 52... Bc5 {[%clk 0:00:16.2]} 1/2-1/2

[Event "*** Titled Tuesday Blitz"]
[Site "Chess.com"]
[Date "2021.02.02"]
[Round "3"]
[White "Pikachess999"]
[Black "Skatchkov_V"]
[Result "0-1"]
[WhiteElo "2357"]
[BlackElo "2531"]
[TimeControl "180+1"]
[EndTime "10:30:52 PST"]
[Termination "Skatchkov_V won by resignation"]

1. e4 {[%clk 0:03:00.9]} 1... e5 {[%clk 0:02:59.2]} 2. Nf3 {[%clk 0:03:01]} 2...
d5 {[%clk 0:02:58.2]} 3. d4 {[%clk 0:03:01]} 3... dxe4 {[%clk 0:02:58.5]} 4.
Nxe5 {[%clk 0:03:01.4]} 4... Bd6 {[%clk 0:02:59.2]} 5. Nc4 {[%clk 0:03:01]} 5...
Nf6 {[%clk 0:02:59.5]} 6. Nc3 {[%clk 0:03:01.2]} 6... O-O {[%clk 0:02:59.6]} 7.
Bg5 {[%clk 0:03:01.9]} 7... Nc6 {[%clk 0:02:58.6]} 8. Be2 {[%clk 0:03:01.6]}
8... Bf5 {[%clk 0:02:53.6]} 9. d5 {[%clk 0:02:41.4]} 9... Ne5 {[%clk 0:02:49.6]}
10. Qd4 {[%clk 0:02:34.1]} 10... Nxc4 {[%clk 0:02:32.9]} 11. Bxc4 {[%clk
0:02:35]} 11... Re8 {[%clk 0:02:25.1]} 12. Bxf6 {[%clk 0:02:28.8]} 12... Qxf6
{[%clk 0:02:26]} 13. Qxf6 {[%clk 0:02:29]} 13... gxf6 {[%clk 0:02:26.9]} 14.
O-O-O {[%clk 0:02:15.9]} 14... a6 {[%clk 0:02:26.7]} 15. a4 {[%clk 0:02:06]}
15... Bg4 {[%clk 0:01:37.2]} 16. Rde1 {[%clk 0:02:02.3]} 16... f5 {[%clk
0:01:36.7]} 17. h3 {[%clk 0:01:42]} 17... Bh5 {[%clk 0:01:36.2]} 18. g4 {[%clk
0:01:28.8]} 18... Bg6 {[%clk 0:01:35.7]} 19. Re2 {[%clk 0:01:13.4]} 19... b5
{[%clk 0:01:32.1]} 20. Bb3 {[%clk 0:00:53.5]} 20... b4 {[%clk 0:01:30.3]} 21.
Nd1 {[%clk 0:00:53.3]} 21... f4 {[%clk 0:01:28.5]} 22. Rhe1 {[%clk 0:00:43.4]}
22... f5 {[%clk 0:01:20.7]} 23. Kb1 {[%clk 0:00:39.1]} 23... fxg4 {[%clk
0:01:15.4]} 24. hxg4 {[%clk 0:00:40]} 24... Rab8 {[%clk 0:01:15.1]} 25. a5
{[%clk 0:00:39.1]} 25... Rb5 {[%clk 0:01:14.2]} 26. Ba4 {[%clk 0:00:39.2]} 26...
Rxd5 {[%clk 0:00:55]} 27. Bxe8 {[%clk 0:00:38.5]} 27... Bxe8 {[%clk 0:00:55.9]}
28. Rxe4 {[%clk 0:00:38.7]} 28... Bg6 {[%clk 0:00:56.8]} 29. R4e2 {[%clk
0:00:32.4]} 29... b3 {[%clk 0:00:56.6]} 30. Nc3 {[%clk 0:00:29.9]} 30... bxc2+
{[%clk 0:00:55.4]} 31. Kc1 {[%clk 0:00:19.5]} 31... Rxa5 {[%clk 0:00:53.6]} 32.
Ne4 {[%clk 0:00:18.6]} 32... f3 {[%clk 0:00:44.6]} 33. Nxd6 {[%clk 0:00:03]}
33... fxe2 {[%clk 0:00:43.8]} 34. Nc4 {[%clk 0:00:03.6]} 34... Ra1+ {[%clk
0:00:43.6]} 0-1

[Event "*** Titled Tuesday Blitz"]
[Site "Chess.com"]
[Date "2021.02.02"]
[Round "3"]
[White "Legendinunknown"]
[Black "Kaua18"]
[Result "1-0"]
[WhiteElo "2587"]
[BlackElo "2395"]
[TimeControl "180+1"]
[EndTime "10:30:53 PST"]
[Termination "Legendinunknown won by checkmate"]

1. d4 {[%clk 0:03:00.9]} 1... Nf6 {[%clk 0:02:54.4]} 2. c4 {[%clk 0:02:57.5]}
2... e6 {[%clk 0:02:54.6]} 3. Nc3 {[%clk 0:02:57.2]} 3... Bb4 {[%clk 0:02:53.9]}
4. f3 {[%clk 0:02:55.9]} 4... d5 {[%clk 0:02:53.7]} 5. a3 {[%clk 0:02:54]} 5...
Bxc3+ {[%clk 0:02:53.6]} 6. bxc3 {[%clk 0:02:52.5]} 6... c5 {[%clk 0:02:54.1]}
7. cxd5 {[%clk 0:02:50.1]} 7... Nxd5 {[%clk 0:02:55]} 8. dxc5 {[%clk 0:02:47.4]}
8... Qa5 {[%clk 0:02:52.3]} 9. e4 {[%clk 0:02:43]} 9... Ne7 {[%clk 0:02:51.7]}
10. Ne2 {[%clk 0:02:37.2]} 10... O-O {[%clk 0:02:50.7]} 11. Be3 {[%clk 0:02:33]}
11... e5 {[%clk 0:02:50.5]} 12. Qc2 {[%clk 0:02:23.7]} 12... Nec6 {[%clk
0:02:47.6]} 13. Ng3 {[%clk 0:02:20.4]} 13... Na6 {[%clk 0:02:46.5]} 14. Bxa6
{[%clk 0:02:13.4]} 14... Qxa6 {[%clk 0:02:47.4]} 15. Kf2 {[%clk 0:02:11.2]}
15... Be6 {[%clk 0:02:43.2]} 16. Rhd1 {[%clk 0:02:04.4]} 16... Rfd8 {[%clk
0:02:39.5]} 17. Nf5 {[%clk 0:02:02.5]} 17... Bxf5 {[%clk 0:02:30.6]} 18. exf5
{[%clk 0:02:03.4]} 18... Na5 {[%clk 0:02:24.6]} 19. Qa4 {[%clk 0:01:56.2]} 19...
f6 {[%clk 0:02:00.4]} 20. Rd6 {[%clk 0:01:45.1]} 20... b6 {[%clk 0:01:36]} 21.
Rad1 {[%clk 0:01:39.2]} 21... Rxd6 {[%clk 0:01:29.5]} 22. Rxd6 {[%clk
0:01:40.1]} 22... Qc4 {[%clk 0:01:14.9]} 23. Qd7 {[%clk 0:01:35.5]} 23... bxc5
{[%clk 0:00:55.6]} 24. Qc7 {[%clk 0:01:27.9]} 24... Qxc3 {[%clk 0:00:36.1]} 25.
Rd7 {[%clk 0:01:26.9]} 25... Qc2+ {[%clk 0:00:36.2]} 26. Bd2 {[%clk 0:00:28]}
26... Kh8 {[%clk 0:00:04.8]} 27. Qxa5 {[%clk 0:00:23.4]} 27... Qxf5 {[%clk
0:00:03.2]} 28. Rd8+ {[%clk 0:00:23]} 28... Rxd8 {[%clk 0:00:03.3]} 29. Qxd8#
{[%clk 0:00:23.9]} 1-0

[Event "*** Titled Tuesday Blitz"]
[Site "Chess.com"]
[Date "2021.02.02"]
[Round "3"]
[White "Matols"]
[Black "eCztery"]
[Result "1-0"]
[WhiteElo "2276"]
[BlackElo "2423"]
[TimeControl "180+1"]
[EndTime "10:30:53 PST"]
[Termination "Matols won by resignation"]

1. d4 {[%clk 0:03:00.9]} 1... Nf6 {[%clk 0:02:53.8]} 2. c4 {[%clk 0:03:00.7]}
2... g6 {[%clk 0:02:43.6]} 3. g3 {[%clk 0:02:59.9]} 3... Bg7 {[%clk 0:02:39.6]}
4. Bg2 {[%clk 0:02:59.7]} 4... O-O {[%clk 0:02:39.2]} 5. Nc3 {[%clk 0:02:59.8]}
5... c5 {[%clk 0:02:39]} 6. d5 {[%clk 0:02:58.4]} 6... d6 {[%clk 0:02:35.8]} 7.
Nf3 {[%clk 0:02:57.4]} 7... a6 {[%clk 0:02:36]} 8. a4 {[%clk 0:02:55.7]} 8...
Bf5 {[%clk 0:02:31.7]} 9. Nh4 {[%clk 0:02:43.9]} 9... Bg4 {[%clk 0:02:29.3]} 10.
h3 {[%clk 0:02:40.6]} 10... Bd7 {[%clk 0:02:29.1]} 11. O-O {[%clk 0:02:38.8]}
11... a5 {[%clk 0:01:51.5]} 12. e4 {[%clk 0:02:30.6]} 12... Na6 {[%clk
0:01:50.7]} 13. Be3 {[%clk 0:02:23.9]} 13... Nb4 {[%clk 0:01:49.9]} 14. Kh2
{[%clk 0:02:16.5]} 14... Qc7 {[%clk 0:01:46.2]} 15. Nb5 {[%clk 0:02:13.9]} 15...
Bxb5 {[%clk 0:01:42.9]} 16. axb5 {[%clk 0:02:13.6]} 16... Nd7 {[%clk 0:01:40.1]}
17. Qd2 {[%clk 0:01:54.2]} 17... b6 {[%clk 0:01:38.9]} 18. f4 {[%clk 0:01:51.5]}
18... Rae8 {[%clk 0:01:20.3]} 19. Nf3 {[%clk 0:01:50]} 19... e6 {[%clk 0:01:14]}
20. dxe6 {[%clk 0:01:39.1]} 20... Rxe6 {[%clk 0:01:14.9]} 21. Ng5 {[%clk
0:01:32.7]} 21... Re7 {[%clk 0:01:07.3]} 22. Rad1 {[%clk 0:01:31.8]} 22... h6
{[%clk 0:01:04.6]} 23. Nf3 {[%clk 0:01:30.1]} 23... Rxe4 {[%clk 0:01:02.3]} 24.
Nh4 {[%clk 0:01:14.1]} 24... Re6 {[%clk 0:00:55.9]} 25. f5 {[%clk 0:01:13.4]}
25... Rxe3 {[%clk 0:00:45.4]} 26. Qxe3 {[%clk 0:01:12.6]} 26... g5 {[%clk
0:00:45.7]} 27. Nf3 {[%clk 0:01:11.7]} 27... Ne5 {[%clk 0:00:41.2]} 28. Nd2
{[%clk 0:00:55.5]} 28... Nc2 {[%clk 0:00:36.9]} 29. Qe4 {[%clk 0:00:47.9]} 29...
Nd4 {[%clk 0:00:25.8]} 30. f6 {[%clk 0:00:47.4]} 30... Bh8 {[%clk 0:00:25.4]}
31. h4 {[%clk 0:00:44.3]} 31... Re8 {[%clk 0:00:24.1]} 32. Qd5 {[%clk
0:00:36.3]} 32... Ng4+ {[%clk 0:00:20.3]} 33. Kh1 {[%clk 0:00:35.3]} 33... Re5
{[%clk 0:00:17.2]} 34. Qa8+ {[%clk 0:00:33.9]} 34... Re8 {[%clk 0:00:17.2]} 35.
Qxe8+ {[%clk 0:00:33]} 35... Kh7 {[%clk 0:00:16.5]} 36. hxg5 {[%clk 0:00:33.1]}
36... hxg5 {[%clk 0:00:16.4]} 37. Be4+ {[%clk 0:00:33.2]} 1-0

[Event "*** Titled Tuesday Blitz"]
[Site "Chess.com"]
[Date "2021.02.02"]
[Round "3"]
[White "dukicz123"]
[Black "ParvizGasimov"]
[Result "1-0"]
[WhiteElo "2607"]
[BlackElo "2407"]
[TimeControl "180+1"]
[EndTime "10:30:55 PST"]
[Termination "dukicz123 won on time"]

1. e4 {[%clk 0:03:00.9]} 1... e6 {[%clk 0:02:59.3]} 2. d4 {[%clk 0:03:00.9]}
2... d5 {[%clk 0:02:59.4]} 3. Nc3 {[%clk 0:03:01.6]} 3... Bb4 {[%clk 0:02:58.7]}
4. e5 {[%clk 0:03:02.1]} 4... c5 {[%clk 0:02:58.9]} 5. a3 {[%clk 0:03:02.6]}
5... Bxc3+ {[%clk 0:02:59.1]} 6. bxc3 {[%clk 0:03:03.5]} 6... Ne7 {[%clk
0:02:59.1]} 7. Qg4 {[%clk 0:03:04.1]} 7... O-O {[%clk 0:02:59.3]} 8. Bd3 {[%clk
0:03:01.5]} 8... Nbc6 {[%clk 0:02:59.1]} 9. Qh5 {[%clk 0:02:26.4]} 9... Ng6
{[%clk 0:02:51.4]} 10. Be3 {[%clk 0:02:18.5]} 10... Qa5 {[%clk 0:02:33]} 11. Bd2
{[%clk 0:02:16.7]} 11... Qa4 {[%clk 0:02:24.1]} 12. Nf3 {[%clk 0:01:28.3]} 12...
cxd4 {[%clk 0:01:20.4]} 13. cxd4 {[%clk 0:01:25.2]} 13... Nxd4 {[%clk
0:01:14.2]} 14. Nxd4 {[%clk 0:00:56.9]} 14... Qxd4 {[%clk 0:01:12]} 15. O-O
{[%clk 0:00:57.8]} 15... Bd7 {[%clk 0:01:05.8]} 16. Rab1 {[%clk 0:00:55.5]}
16... h6 {[%clk 0:00:40.1]} 17. Rb4 {[%clk 0:00:40.9]} 17... Qc5 {[%clk
0:00:34.1]} 18. Bxh6 {[%clk 0:00:36.1]} 18... Rfc8 {[%clk 0:00:09.4]} 19. Bxg6
{[%clk 0:00:25.7]} 19... fxg6 {[%clk 0:00:06.6]} 20. Qxg6 {[%clk 0:00:26.6]}
20... Qe7 {[%clk 0:00:06.2]} 21. Rg4 {[%clk 0:00:27.2]} 21... Be8 {[%clk
0:00:04.3]} 22. Qd3 {[%clk 0:00:11.3]} 22... g6 {[%clk 0:00:02.6]} 23. Bg5
{[%clk 0:00:11.7]} 23... Qf7 {[%clk 0:00:01.8]} 24. Bf6 {[%clk 0:00:11.8]} 1-0

[Event "*** Titled Tuesday Blitz"]
[Site "Chess.com"]
[Date "2021.02.02"]
[Round "3"]
[White "KNCP_719"]
[Black "Politov_Pavel"]
[Result "1-0"]
[WhiteElo "2595"]
[BlackElo "2400"]
[TimeControl "180+1"]
[EndTime "10:30:55 PST"]
[Termination "KNCP_719 won by checkmate"]

1. e4 {[%clk 0:03:00.9]} 1... e5 {[%clk 0:02:59.7]} 2. Nf3 {[%clk 0:03:00.3]}
2... Nf6 {[%clk 0:02:59.5]} 3. Nxe5 {[%clk 0:03:00.2]} 3... d6 {[%clk
0:02:56.1]} 4. Nf3 {[%clk 0:03:00.7]} 4... Nxe4 {[%clk 0:02:55.3]} 5. d3 {[%clk
0:03:01.1]} 5... Nf6 {[%clk 0:02:54.7]} 6. d4 {[%clk 0:03:01.7]} 6... Be7 {[%clk
0:02:53.5]} 7. Bd3 {[%clk 0:03:01.7]} 7... O-O {[%clk 0:02:54.1]} 8. O-O {[%clk
0:03:02]} 8... c5 {[%clk 0:02:54.4]} 9. h3 {[%clk 0:02:56]} 9... cxd4 {[%clk
0:02:51.8]} 10. Nxd4 {[%clk 0:02:56]} 10... Nc6 {[%clk 0:02:52.7]} 11. Nf5
{[%clk 0:02:45.9]} 11... Bxf5 {[%clk 0:02:51.3]} 12. Bxf5 {[%clk 0:02:46.8]}
12... d5 {[%clk 0:02:52.2]} 13. Nc3 {[%clk 0:02:46.1]} 13... h6 {[%clk 0:02:48]}
14. Re1 {[%clk 0:02:44.8]} 14... Bc5 {[%clk 0:02:40.4]} 15. Bf4 {[%clk
0:02:39.9]} 15... Qb6 {[%clk 0:02:27]} 16. Bg3 {[%clk 0:02:30.5]} 16... Qxb2
{[%clk 0:02:08.3]} 17. Nxd5 {[%clk 0:02:30.3]} 17... Rad8 {[%clk 0:02:01.3]} 18.
c4 {[%clk 0:02:18.5]} 18... Nxd5 {[%clk 0:01:41.9]} 19. cxd5 {[%clk 0:02:18.1]}
19... Ne7 {[%clk 0:01:42.7]} 20. Be4 {[%clk 0:02:06.8]} 20... f5 {[%clk
0:01:40.4]} 21. Rc1 {[%clk 0:01:01.4]} 21... Qa3 {[%clk 0:01:33.9]} 22. Bf3
{[%clk 0:00:35.5]} 22... f4 {[%clk 0:01:33.2]} 23. Qc2 {[%clk 0:00:26.6]} 23...
b6 {[%clk 0:01:22.2]} 24. Bh4 {[%clk 0:00:21.8]} 24... Rde8 {[%clk 0:00:55.5]}
25. Bxe7 {[%clk 0:00:19.8]} 25... Bxe7 {[%clk 0:00:52.1]} 26. Qg6 {[%clk
0:00:16.3]} 26... Rd8 {[%clk 0:00:34.1]} 27. Rc7 {[%clk 0:00:14]} 27... Rf6
{[%clk 0:00:29.8]} 28. Qe4 {[%clk 0:00:05.5]} 28... Bd6 {[%clk 0:00:26.6]} 29.
Rb7 {[%clk 0:00:05.6]} 29... Rff8 {[%clk 0:00:24.3]} 30. Qe6+ {[%clk 0:00:03.8]}
30... Kh8 {[%clk 0:00:24.5]} 31. Qg6 {[%clk 0:00:04.2]} 31... Rf6 {[%clk
0:00:24.4]} 32. Qxg7# {[%clk 0:00:04.3]} 1-0

[Event "*** Titled Tuesday Blitz"]
[Site "Chess.com"]
[Date "2021.02.02"]
[Round "3"]
[White "r31415"]
[Black "jorquerino"]
[Result "1-0"]
[WhiteElo "2511"]
[BlackElo "2295"]
[TimeControl "180+1"]
[EndTime "10:30:55 PST"]
[Termination "r31415 won on time"]

1. e4 {[%clk 0:03:00.9]} 1... d5 {[%clk 0:02:59.1]} 2. exd5 {[%clk 0:03:00.6]}
2... Nf6 {[%clk 0:02:59.6]} 3. Nf3 {[%clk 0:03:00.6]} 3... Nxd5 {[%clk
0:02:59.2]} 4. d4 {[%clk 0:03:01.1]} 4... g6 {[%clk 0:02:59.6]} 5. Be2 {[%clk
0:03:00.6]} 5... Bg7 {[%clk 0:02:59.8]} 6. c4 {[%clk 0:03:00.5]} 6... Nb6 {[%clk
0:02:58.5]} 7. Nc3 {[%clk 0:03:00.4]} 7... O-O {[%clk 0:02:58.4]} 8. O-O {[%clk
0:02:58.6]} 8... Nc6 {[%clk 0:02:56.8]} 9. c5 {[%clk 0:02:42.4]} 9... Nd5 {[%clk
0:02:55.6]} 10. Qb3 {[%clk 0:02:17.4]} 10... Be6 {[%clk 0:02:27.7]} 11. Qxb7
{[%clk 0:02:09]} 11... Nxc3 {[%clk 0:02:27]} 12. bxc3 {[%clk 0:02:05.7]} 12...
Bd5 {[%clk 0:02:27.6]} 13. Qa6 {[%clk 0:02:01.2]} 13... Rb8 {[%clk 0:02:03.3]}
14. Be3 {[%clk 0:01:52.9]} 14... e5 {[%clk 0:01:39.1]} 15. Rfd1 {[%clk
0:01:52.3]} 15... exd4 {[%clk 0:01:28.5]} 16. Nxd4 {[%clk 0:01:42.1]} 16... Qf6
{[%clk 0:01:17.9]} 17. Bc4 {[%clk 0:00:44.4]} 17... Bxc4 {[%clk 0:00:44.4]} 18.
Qxc6 {[%clk 0:00:33.8]} 18... Qxc6 {[%clk 0:00:33.7]} 19. Nxc6 {[%clk
0:00:33.6]} 19... Rb2 {[%clk 0:00:21.5]} 20. Nxa7 {[%clk 0:00:27.6]} 20... Bxa2
{[%clk 0:00:20.9]} 21. Bd4 {[%clk 0:00:25.7]} 21... Be6 {[%clk 0:00:16.7]} 22.
Nc6 {[%clk 0:00:23.5]} 22... h5 {[%clk 0:00:08.5]} 23. Ra7 {[%clk 0:00:22.9]}
23... Bf5 {[%clk 0:00:03.8]} 24. Ne7+ {[%clk 0:00:17.5]} 24... Kh7 {[%clk
0:00:03.3]} 25. Nxf5 {[%clk 0:00:18.4]} 25... gxf5 {[%clk 0:00:03.2]} 26. Rxc7
{[%clk 0:00:19.3]} 26... Rd8 {[%clk 0:00:02.3]} 27. Kf1 {[%clk 0:00:16.4]} 27...
Bxd4 {[%clk 0:00:01.2]} 28. Rxd4 {[%clk 0:00:14.5]} 1-0

[Event "*** Titled Tuesday Blitz"]
[Site "Chess.com"]
[Date "2021.02.02"]
[Round "3"]
[White "Rud_Makarian"]
[Black "tjychess"]
[Result "1-0"]
[WhiteElo "2902"]
[BlackElo "2651"]
[TimeControl "180+1"]
[EndTime "10:30:56 PST"]
[Termination "Rud_Makarian won by resignation"]

1. d4 {[%clk 0:03:00.9]} 1... Nf6 {[%clk 0:03:00.2]} 2. c4 {[%clk 0:02:54.3]}
2... e6 {[%clk 0:03:00.7]} 3. Nf3 {[%clk 0:02:54.4]} 3... Bb4+ {[%clk
0:02:59.5]} 4. Bd2 {[%clk 0:02:52.3]} 4... a5 {[%clk 0:02:59.3]} 5. g3 {[%clk
0:02:51.1]} 5... d6 {[%clk 0:02:59.2]} 6. Bg2 {[%clk 0:02:51.2]} 6... Nbd7
{[%clk 0:02:59.8]} 7. O-O {[%clk 0:02:51.8]} 7... e5 {[%clk 0:03:00.4]} 8. Nc3
{[%clk 0:02:51.9]} 8... exd4 {[%clk 0:03:00.2]} 9. Nxd4 {[%clk 0:02:51.7]} 9...
O-O {[%clk 0:03:00.9]} 10. b3 {[%clk 0:02:46.3]} 10... Re8 {[%clk 0:03:00.4]}
11. a3 {[%clk 0:02:44.7]} 11... Bc5 {[%clk 0:03:00.2]} 12. Bf4 {[%clk
0:02:34.9]} 12... Ne5 {[%clk 0:02:57.4]} 13. Qd2 {[%clk 0:02:22.7]} 13... Ng6
{[%clk 0:02:53.7]} 14. Bg5 {[%clk 0:02:22]} 14... h6 {[%clk 0:02:52.3]} 15. Bxf6
{[%clk 0:02:18.7]} 15... Qxf6 {[%clk 0:02:53.2]} 16. Ndb5 {[%clk 0:02:18.7]}
16... Qd8 {[%clk 0:02:33.1]} 17. Ne4 {[%clk 0:01:59]} 17... Bb6 {[%clk
0:02:21.9]} 18. Rad1 {[%clk 0:01:39.7]} 18... Bd7 {[%clk 0:01:17.6]} 19. c5
{[%clk 0:01:29.6]} 19... Bxc5 {[%clk 0:00:42.8]} 20. Nxc5 {[%clk 0:01:29.4]}
20... Bxb5 {[%clk 0:00:42.7]} 21. Nxb7 {[%clk 0:01:29.9]} 21... Qf6 {[%clk
0:00:28.9]} 22. Rfe1 {[%clk 0:01:26.9]} 22... a4 {[%clk 0:00:25.5]} 23. Na5
{[%clk 0:01:18.9]} 23... Rab8 {[%clk 0:00:21.9]} 24. b4 {[%clk 0:01:17.7]} 24...
Ne5 {[%clk 0:00:19.4]} 25. Qc3 {[%clk 0:01:11.3]} 25... Re7 {[%clk 0:00:09.2]}
26. f4 {[%clk 0:00:59.4]} 26... Ng4 {[%clk 0:00:08.7]} 27. Qxf6 {[%clk
0:01:00.3]} 27... Nxf6 {[%clk 0:00:09.6]} 28. Nc6 {[%clk 0:00:57.6]} 28... Bxc6
{[%clk 0:00:09.7]} 29. Bxc6 {[%clk 0:00:58.5]} 29... Re3 {[%clk 0:00:10.1]} 30.
Rd3 {[%clk 0:00:57.6]} 30... Rxd3 {[%clk 0:00:06.2]} 31. exd3 {[%clk 0:00:58.5]}
31... g6 {[%clk 0:00:05.9]} 32. Rc1 {[%clk 0:00:56.3]} 32... Rb6 {[%clk
0:00:04.1]} 33. b5 {[%clk 0:00:51.3]} 33... Rb8 {[%clk 0:00:02.9]} 34. Rc4
{[%clk 0:00:51.5]} 34... Kf8 {[%clk 0:00:01.9]} 35. Rxa4 {[%clk 0:00:52.1]}
35... Ke7 {[%clk 0:00:02.8]} 36. Rc4 {[%clk 0:00:47.4]} 36... d5 {[%clk
0:00:03.1]} 37. Rc1 {[%clk 0:00:47.5]} 37... Kd6 {[%clk 0:00:04]} 38. a4 {[%clk
0:00:48.1]} 38... Nd7 {[%clk 0:00:02.4]} 39. a5 {[%clk 0:00:46.4]} 39... Nc5
{[%clk 0:00:02.7]} 40. a6 {[%clk 0:00:47]} 40... Nxa6 {[%clk 0:00:01.9]} 41.
bxa6 {[%clk 0:00:47.2]} 1-0

[Event "*** Titled Tuesday Blitz"]
[Site "Chess.com"]
[Date "2021.02.02"]
[Round "3"]
[White "Grimlock_Glasgow"]
[Black "Rogarcia1"]
[Result "1-0"]
[WhiteElo "2494"]
[BlackElo "2229"]
[TimeControl "180+1"]
[EndTime "10:30:56 PST"]
[Termination "Grimlock_Glasgow won on time"]

1. e4 {[%clk 0:03:00.9]} 1... c5 {[%clk 0:02:59.3]} 2. Nc3 {[%clk 0:03:00.8]}
2... Nc6 {[%clk 0:02:58.6]} 3. Bb5 {[%clk 0:03:00.4]} 3... g6 {[%clk 0:02:54.7]}
4. Bxc6 {[%clk 0:02:59.2]} 4... dxc6 {[%clk 0:02:53.9]} 5. d3 {[%clk 0:03:00.1]}
5... Bg7 {[%clk 0:02:52.9]} 6. f4 {[%clk 0:02:59.2]} 6... Nf6 {[%clk 0:02:46]}
7. Nf3 {[%clk 0:02:57.2]} 7... O-O {[%clk 0:02:45.5]} 8. O-O {[%clk 0:02:56.2]}
8... b6 {[%clk 0:02:40.8]} 9. Qe1 {[%clk 0:02:50.9]} 9... a5 {[%clk 0:02:25.8]}
10. Qh4 {[%clk 0:02:46.3]} 10... Ra7 {[%clk 0:02:07.5]} 11. f5 {[%clk 0:02:45]}
11... b5 {[%clk 0:01:39.5]} 12. Bh6 {[%clk 0:02:40.8]} 12... b4 {[%clk
0:01:15.9]} 13. Ne2 {[%clk 0:02:21.5]} 13... c4 {[%clk 0:00:56.5]} 14. dxc4
{[%clk 0:01:52.5]} 14... Bxh6 {[%clk 0:00:50.3]} 15. Qxh6 {[%clk 0:01:51.9]}
15... Qb6+ {[%clk 0:00:50.5]} 16. Kh1 {[%clk 0:01:07.4]} 16... Ng4 {[%clk
0:00:50.4]} 17. Qh4 {[%clk 0:00:59.4]} 17... h5 {[%clk 0:00:44.1]} 18. Nf4
{[%clk 0:00:31.7]} 18... Kg7 {[%clk 0:00:25.1]} 19. h3 {[%clk 0:00:17.5]} 19...
Ne3 {[%clk 0:00:23.6]} 20. Rf2 {[%clk 0:00:15.5]} 20... Nxc4 {[%clk 0:00:16.8]}
21. Nxh5+ {[%clk 0:00:14.4]} 21... gxh5 {[%clk 0:00:15.2]} 22. Qg5+ {[%clk
0:00:14.4]} 22... Kh8 {[%clk 0:00:14.5]} 23. Qh6+ {[%clk 0:00:12.1]} 23... Kg8
{[%clk 0:00:14.4]} 24. Ng5 {[%clk 0:00:12]} 1-0